[Event "Titled Tuesday Blitz March 15 Early 2022"]
[White "Gaehwiler, Gabriel"]
[Black "Gurevich, Dmitry"]
[WhiteFideId "1314530"]
[BlackFideId "2000407"]
[WhiteElo "2383"]
[BlackElo "2506"]
[Result "1-0"]
[Round "04"]
[TimeControl "180+1"]
[Date "2022.03.15"]
[WhiteClock "0:00:25"]
[BlackClock "0:00:20"]

1. d4 {[%clk 0:02:48]}  Nf6 {[%clk 0:02:59]} 2. c4 {[%clk 0:02:49]}  a6 {[%clk 0:02:58]} 3. g3 {[%clk 0:02:48]}  c5 {[%clk 0:02:58]} 4. dxc5 {[%clk 0:02:42]}  e6 {[%clk 0:02:55]} 5. Bg2 {[%clk 0:02:42]}  Bxc5 {[%clk 0:02:54]} 6. Nf3 {[%clk 0:02:42]}  O-O {[%clk 0:02:53]} 7. O-O {[%clk 0:02:42]}  d5 {[%clk 0:02:53]} 8. cxd5 {[%clk 0:02:43]}  Qxd5 {[%clk 0:02:48]} 9. Qc2 {[%clk 0:02:42]}  Qh5 {[%clk 0:02:38]} 10. a3 {[%clk 0:02:37]}  Nc6 {[%clk 0:02:36]} 11. Bg5 {[%clk 0:02:33]}  Be7 {[%clk 0:02:27]} 12. Nc3 {[%clk 0:02:32]}  h6 {[%clk 0:02:23]} 13. Bxf6 {[%clk 0:02:31]}  Bxf6 {[%clk 0:02:22]} 14. Ne4 {[%clk 0:02:32]}  Be7 {[%clk 0:02:20]} 15. Rfd1 {[%clk 0:02:31]}  e5 {[%clk 0:02:18]} 16. Qb3 {[%clk 0:02:25]}  Rb8 {[%clk 0:02:12]} 17. Rac1 {[%clk 0:02:22]}  Be6 {[%clk 0:02:11]} 18. Qb6 {[%clk 0:02:22]}  f5 {[%clk 0:02:01]} 19. Nc5 {[%clk 0:02:11]}  Bxc5 {[%clk 0:01:48]} 20. Qxc5 {[%clk 0:02:11]}  e4 {[%clk 0:01:47]} 21. Ne5 {[%clk 0:01:52]}  Qxe2 {[%clk 0:01:41]} 22. Nxc6 {[%clk 0:01:06]}  bxc6 {[%clk 0:01:39]} 23. Qxc6 {[%clk 0:01:05]}  Bb3 {[%clk 0:01:29]} 24. Re1 {[%clk 0:00:52]}  Qxb2 {[%clk 0:01:22]} 25. Qxa6 {[%clk 0:00:52]}  Ra8 {[%clk 0:01:13]} 26. Qb5 {[%clk 0:00:45]}  Rxa3 {[%clk 0:01:06]} 27. Rb1 {[%clk 0:00:40]}  Qc3 {[%clk 0:01:02]} 28. Rec1 {[%clk 0:00:40]}  Qd3 {[%clk 0:00:53]} 29. Qxd3 {[%clk 0:00:39]}  exd3 {[%clk 0:00:52]} 30. Rxb3 {[%clk 0:00:39]}  Rxb3 {[%clk 0:00:40]} 31. Bd5+ {[%clk 0:00:38]}  Kh7 {[%clk 0:00:41]} 32. Bxb3 {[%clk 0:00:39]}  Rd8 {[%clk 0:00:41]} 33. Rd1 {[%clk 0:00:38]}  Kg6 {[%clk 0:00:36]} 34. Bc4 {[%clk 0:00:37]}  d2 {[%clk 0:00:35]} 35. Kf1 {[%clk 0:00:37]}  Kg5 {[%clk 0:00:35]} 36. Ke2 {[%clk 0:00:30]}  Kg4 {[%clk 0:00:33]} 37. Rxd2 {[%clk 0:00:30]}  Rxd2+ {[%clk 0:00:32]} 38. Kxd2 {[%clk 0:00:31]}  Kh3 {[%clk 0:00:28]} 39. Be6 {[%clk 0:00:30]}  g6 {[%clk 0:00:27]} 40. Bf7 {[%clk 0:00:28]}  g5 {[%clk 0:00:24]} 41. Be6 {[%clk 0:00:28]}  Kxh2 {[%clk 0:00:23]} 42. Bxf5 {[%clk 0:00:27]}  Kg2 {[%clk 0:00:23]} 43. Ke3 {[%clk 0:00:27]}  h5 {[%clk 0:00:23]} 44. Bg6 {[%clk 0:00:26]}  h4 {[%clk 0:00:20]} 45. gxh4 {[%clk 0:00:27]}  gxh4 {[%clk 0:00:20]} 46. Be4+ {[%clk 0:00:25]} 1-0


[Site "https://www.chess.com"]

[Event "Titled Tuesday Blitz March 15 Early 2022"]
[White "Gareyev, Timur"]
[Black "Arabidze, Meri"]
[WhiteFideId "14200937"]
[BlackFideId "13604040"]
[WhiteElo "2582"]
[BlackElo "2335"]
[Result "1/2-1/2"]
[Round "04"]
[TimeControl "180+1"]
[Date "2022.03.15"]
[WhiteClock "0:00:31"]
[BlackClock "0:00:10"]

1. d4 {[%clk 0:02:52]}  f5 {[%clk 0:02:59]} 2. h4 {[%clk 0:02:51]}  Nf6 {[%clk 0:02:55]} 3. Bg5 {[%clk 0:02:51]}  d5 {[%clk 0:02:54]} 4. e3 {[%clk 0:02:48]}  c6 {[%clk 0:02:53]} 5. Nd2 {[%clk 0:02:43]}  Be6 {[%clk 0:02:53]} 6. Ne2 {[%clk 0:02:36]}  Nbd7 {[%clk 0:02:47]} 7. c4 {[%clk 0:02:33]}  Bf7 {[%clk 0:02:44]} 8. cxd5 {[%clk 0:02:30]}  cxd5 {[%clk 0:02:44]} 9. Nc3 {[%clk 0:02:28]}  e6 {[%clk 0:02:38]} 10. Rc1 {[%clk 0:02:17]}  a6 {[%clk 0:02:38]} 11. h5 {[%clk 0:02:00]}  h6 {[%clk 0:02:35]} 12. Bf4 {[%clk 0:02:00]}  b5 {[%clk 0:02:11]} 13. Be2 {[%clk 0:01:55]}  Be7 {[%clk 0:01:58]} 14. a3 {[%clk 0:01:50]}  O-O {[%clk 0:01:57]} 15. b4 {[%clk 0:01:49]}  Nb6 {[%clk 0:01:47]} 16. Nb3 {[%clk 0:01:41]}  Nc4 {[%clk 0:01:45]} 17. Nc5 {[%clk 0:01:41]}  Nxa3 {[%clk 0:01:40]} 18. O-O {[%clk 0:01:41]}  Nc4 {[%clk 0:01:40]} 19. Ra1 {[%clk 0:01:39]}  Qe8 {[%clk 0:01:25]} 20. Rxa6 {[%clk 0:01:31]}  Rxa6 {[%clk 0:01:23]} 21. Nxa6 {[%clk 0:01:32]}  Bxh5 {[%clk 0:01:20]} 22. Nc7 {[%clk 0:01:32]}  Bxe2 {[%clk 0:01:13]} 23. Qxe2 {[%clk 0:01:29]}  Qc6 {[%clk 0:01:12]} 24. N3xb5 {[%clk 0:01:25]}  Bxb4 {[%clk 0:01:09]} 25. Rc1 {[%clk 0:01:24]}  Ba5 {[%clk 0:00:58]} 26. Qa2 {[%clk 0:01:18]}  Bxc7 {[%clk 0:00:39]} 27. Nxc7 {[%clk 0:01:19]}  g5 {[%clk 0:00:33]} 28. Be5 {[%clk 0:01:09]}  Ng4 {[%clk 0:00:26]} 29. Bg3 {[%clk 0:00:54]}  f4 {[%clk 0:00:19]} 30. exf4 {[%clk 0:00:54]}  gxf4 {[%clk 0:00:19]} 31. Qe2 {[%clk 0:00:53]}  Qxc7 {[%clk 0:00:16]} 32. Qxg4+ {[%clk 0:00:53]}  Kh7 {[%clk 0:00:12]} 33. Bh2 {[%clk 0:00:48]}  Qf7 {[%clk 0:00:12]} 34. Re1 {[%clk 0:00:47]}  f3 {[%clk 0:00:11]} 35. Rxe6 {[%clk 0:00:45]}  fxg2 {[%clk 0:00:10]} 36. Bf4 {[%clk 0:00:45]}  Qxf4 {[%clk 0:00:07]} 37. Qg6+ {[%clk 0:00:46]}  Kh8 {[%clk 0:00:07]} 38. Re7 {[%clk 0:00:46]}  Qc1+ {[%clk 0:00:06]} 39. Kxg2 {[%clk 0:00:43]}  Qg5+ {[%clk 0:00:06]} 40. Qxg5 {[%clk 0:00:44]}  hxg5 {[%clk 0:00:07]} 41. Rd7 {[%clk 0:00:44]}  Nd2 {[%clk 0:00:07]} 42. Rxd5 {[%clk 0:00:44]}  Ne4 {[%clk 0:00:07]} 43. f3 {[%clk 0:00:41]}  Nd2 {[%clk 0:00:07]} 44. Rxg5 {[%clk 0:00:38]}  Nxf3 {[%clk 0:00:08]} 45. Rh5+ {[%clk 0:00:34]}  Kg7 {[%clk 0:00:08]} 46. d5 {[%clk 0:00:34]}  Nd4 {[%clk 0:00:08]} 47. d6 {[%clk 0:00:34]}  Ne6 {[%clk 0:00:08]} 48. Rd5 {[%clk 0:00:32]}  Kf6 {[%clk 0:00:07]} 49. Rd2 {[%clk 0:00:32]}  Nd8 {[%clk 0:00:07]} 50. Rf2+ {[%clk 0:00:30]}  Kg7 {[%clk 0:00:07]} 51. Rxf8 {[%clk 0:00:30]}  Kxf8 {[%clk 0:00:08]} 52. d7 {[%clk 0:00:30]}  Ke7 {[%clk 0:00:09]} 53. Kf3 {[%clk 0:00:31]}  Kxd7 {[%clk 0:00:10]} 1/2-1/2


[Site "https://www.chess.com"]

[Event "Titled Tuesday Blitz March 15 Early 2022"]
[White "Golubev, Mikhail"]
[Black "Szpar, Milosz"]
[WhiteFideId "14100983"]
[BlackFideId "1184989"]
[WhiteElo "2374"]
[BlackElo "2447"]
[Result "1-0"]
[Round "04"]
[TimeControl "180+1"]
[Date "2022.03.15"]
[WhiteClock "0:00:14"]
[BlackClock "0:00:02"]

1. e4 {[%clk 0:02:57]}  c5 {[%clk 0:02:58]} 2. Nf3 {[%clk 0:02:56]}  d6 {[%clk 0:02:57]} 3. d4 {[%clk 0:02:56]}  cxd4 {[%clk 0:02:58]} 4. Nxd4 {[%clk 0:02:57]}  Nf6 {[%clk 0:02:58]} 5. Nc3 {[%clk 0:02:57]}  Nc6 {[%clk 0:02:59]} 6. Bc4 {[%clk 0:02:56]}  e6 {[%clk 0:02:58]} 7. Be3 {[%clk 0:02:55]}  a6 {[%clk 0:02:56]} 8. Bb3 {[%clk 0:02:55]}  Qc7 {[%clk 0:02:52]} 9. Qe2 {[%clk 0:02:54]}  Na5 {[%clk 0:02:48]} 10. g4 {[%clk 0:02:54]}  b5 {[%clk 0:02:45]} 11. g5 {[%clk 0:02:54]}  Nd7 {[%clk 0:02:45]} 12. Nxe6 {[%clk 0:02:53]}  fxe6 {[%clk 0:02:41]} 13. Bxe6 {[%clk 0:02:52]}  Nb6 {[%clk 0:02:34]} 14. Bxb6 {[%clk 0:02:44]}  Qxb6 {[%clk 0:02:34]} 15. Nd5 {[%clk 0:02:44]}  Qb7 {[%clk 0:02:26]} 16. Qg4 {[%clk 0:02:35]}  Nc6 {[%clk 0:02:19]} 17. O-O-O {[%clk 0:02:14]}  Ne5 {[%clk 0:02:14]} 18. Qh3 {[%clk 0:02:13]}  Nd7 {[%clk 0:01:52]} 19. f4 {[%clk 0:01:40]}  Nc5 {[%clk 0:01:52]} 20. f5 {[%clk 0:01:36]}  Bxe6 {[%clk 0:01:45]} 21. fxe6 {[%clk 0:01:35]}  Be7 {[%clk 0:01:45]} 22. e5 {[%clk 0:01:01]}  dxe5 {[%clk 0:01:34]} 23. Nf6+ {[%clk 0:00:41]}  Bxf6 {[%clk 0:01:19]} 24. gxf6 {[%clk 0:00:41]}  O-O {[%clk 0:00:46]} 25. e7 {[%clk 0:00:30]}  Rfe8 {[%clk 0:00:44]} 26. Rhg1 {[%clk 0:00:26]}  Rxe7 {[%clk 0:00:41]} 27. fxe7 {[%clk 0:00:25]}  Qxe7 {[%clk 0:00:42]} 28. Qg2 {[%clk 0:00:23]}  Rc8 {[%clk 0:00:35]} 29. Qd5+ {[%clk 0:00:22]}  Kh8 {[%clk 0:00:35]} 30. Rge1 {[%clk 0:00:22]}  e4 {[%clk 0:00:33]} 31. Kb1 {[%clk 0:00:22]}  b4 {[%clk 0:00:29]} 32. Qd6 {[%clk 0:00:20]}  Qh4 {[%clk 0:00:24]} 33. Rf1 {[%clk 0:00:19]}  Kg8 {[%clk 0:00:14]} 34. Qd5+ {[%clk 0:00:18]}  Kh8 {[%clk 0:00:14]} 35. Qf5 {[%clk 0:00:18]}  Re8 {[%clk 0:00:02]} 36. Qxc5 {[%clk 0:00:17]}  h6 {[%clk 0:00:02]} 37. Rf8+ {[%clk 0:00:16]}  Rxf8 {[%clk 0:00:02]} 38. Qxf8+ {[%clk 0:00:16]}  Kh7 {[%clk 0:00:03]} 39. Qf5+ {[%clk 0:00:15]}  g6 {[%clk 0:00:04]} 40. Qf7+ {[%clk 0:00:14]}  Kh8 {[%clk 0:00:02]} 41. Rf1 {[%clk 0:00:14]}  e3 {[%clk 0:00:02]} 42. Qf8+ {[%clk 0:00:14]} 1-0


[Site "https://www.chess.com"]

[Event "Titled Tuesday Blitz March 15 Early 2022"]
[White "Guseva, Marina"]
[Black "Horobetz, Graham"]
[WhiteFideId "4149351"]
[BlackFideId "2047322"]
[WhiteElo "2160"]
[BlackElo "2596"]
[Result "1-0"]
[Round "04"]
[TimeControl "180+1"]
[Date "2022.03.15"]
[WhiteClock "0:00:23"]
[BlackClock "0:00:08"]

1. d4 {[%clk 0:03:00]}  Nf6 {[%clk 0:02:56]} 2. Nf3 {[%clk 0:02:59]}  e6 {[%clk 0:02:56]} 3. Bf4 {[%clk 0:02:58]}  d5 {[%clk 0:02:55]} 4. e3 {[%clk 0:02:57]}  c5 {[%clk 0:02:55]} 5. Nbd2 {[%clk 0:02:52]}  Nc6 {[%clk 0:02:54]} 6. c3 {[%clk 0:02:51]}  Bd6 {[%clk 0:02:54]} 7. Bg3 {[%clk 0:02:51]}  O-O {[%clk 0:02:52]} 8. Bd3 {[%clk 0:02:50]}  b6 {[%clk 0:02:52]} 9. Qe2 {[%clk 0:02:46]}  Bb7 {[%clk 0:02:50]} 10. e4 {[%clk 0:02:21]}  Be7 {[%clk 0:02:38]} 11. e5 {[%clk 0:02:21]}  Nh5 {[%clk 0:02:38]} 12. h4 {[%clk 0:02:18]}  cxd4 {[%clk 0:02:25]} 13. Nxd4 {[%clk 0:02:16]}  g6 {[%clk 0:02:02]} 14. Bh2 {[%clk 0:01:56]}  Nxd4 {[%clk 0:01:41]} 15. cxd4 {[%clk 0:01:55]}  Bxh4 {[%clk 0:01:36]} 16. g4 {[%clk 0:01:52]}  Ng7 {[%clk 0:01:34]} 17. O-O-O {[%clk 0:01:50]}  a5 {[%clk 0:01:23]} 18. Kb1 {[%clk 0:01:49]}  f6 {[%clk 0:01:07]} 19. exf6 {[%clk 0:01:18]}  Qxf6 {[%clk 0:00:52]} 20. Rdf1 {[%clk 0:00:44]}  Qe7 {[%clk 0:00:35]} 21. Be5 {[%clk 0:00:42]}  Bf6 {[%clk 0:00:27]} 22. Nf3 {[%clk 0:00:36]}  Bxe5 {[%clk 0:00:23]} 23. Nxe5 {[%clk 0:00:36]}  Rf4 {[%clk 0:00:22]} 24. Bxg6 {[%clk 0:00:27]}  Qf6 {[%clk 0:00:11]} 25. Bxh7+ {[%clk 0:00:25]}  Kh8 {[%clk 0:00:08]} 26. Ng6+ {[%clk 0:00:23]} 1-0


[Site "https://www.chess.com"]

[Event "Titled Tuesday Blitz March 15 Early 2022"]
[White "Hansen, Soren Bech"]
[Black "Marson, Juan Miguel"]
[WhiteFideId "1400681"]
[BlackFideId "106585"]
[WhiteElo "2238"]
[BlackElo "2053"]
[Result "0-1"]
[Round "04"]
[TimeControl "180+1"]
[Date "2022.03.15"]
[WhiteClock "0:00:03"]
[BlackClock "0:00:09"]

1. e4 {[%clk 0:03:00]}  e5 {[%clk 0:03:00]} 2. Bc4 {[%clk 0:03:00]}  Nf6 {[%clk 0:02:58]} 3. d3 {[%clk 0:03:00]}  Nc6 {[%clk 0:02:54]} 4. Nf3 {[%clk 0:02:59]}  Be7 {[%clk 0:02:50]} 5. O-O {[%clk 0:02:58]}  O-O {[%clk 0:02:43]} 6. a4 {[%clk 0:02:58]}  d6 {[%clk 0:02:43]} 7. c3 {[%clk 0:02:53]}  Kh8 {[%clk 0:02:41]} 8. Re1 {[%clk 0:02:45]}  Ng8 {[%clk 0:02:39]} 9. d4 {[%clk 0:02:45]}  f5 {[%clk 0:02:38]} 10. dxe5 {[%clk 0:02:41]}  fxe4 {[%clk 0:02:34]} 11. Rxe4 {[%clk 0:02:41]}  Rxf3 {[%clk 0:02:30]} 12. Qxf3 {[%clk 0:02:40]}  d5 {[%clk 0:02:29]} 13. Bd3 {[%clk 0:01:58]}  dxe4 {[%clk 0:02:15]} 14. Qxe4 {[%clk 0:01:58]}  g6 {[%clk 0:02:12]} 15. Qe2 {[%clk 0:01:42]}  Bg4 {[%clk 0:01:42]} 16. f3 {[%clk 0:01:34]}  Bc5+ {[%clk 0:01:32]} 17. Kh1 {[%clk 0:01:28]}  Be6 {[%clk 0:01:26]} 18. Bf4 {[%clk 0:01:22]}  Nge7 {[%clk 0:01:20]} 19. Nd2 {[%clk 0:01:17]}  Nd5 {[%clk 0:01:19]} 20. Bg3 {[%clk 0:01:12]}  Bf8 {[%clk 0:01:17]} 21. Ne4 {[%clk 0:01:06]}  Qe7 {[%clk 0:00:57]} 22. Rf1 {[%clk 0:00:54]}  Bg7 {[%clk 0:00:57]} 23. f4 {[%clk 0:00:54]}  Rf8 {[%clk 0:00:56]} 24. Ng5 {[%clk 0:00:52]}  Nxe5 {[%clk 0:00:43]} 25. Nxe6 {[%clk 0:00:47]}  Nxd3 {[%clk 0:00:43]} 26. f5 {[%clk 0:00:30]}  gxf5 {[%clk 0:00:30]} 27. Qxd3 {[%clk 0:00:15]}  Qxe6 {[%clk 0:00:29]} 28. c4 {[%clk 0:00:15]}  Ne3 {[%clk 0:00:14]} 29. Re1 {[%clk 0:00:14]}  f4 {[%clk 0:00:15]} 30. Bh4 {[%clk 0:00:12]}  Qxc4 {[%clk 0:00:12]} 31. Rxe3 {[%clk 0:00:11]}  Qc1+ {[%clk 0:00:10]} 32. Re1 {[%clk 0:00:09]}  Qxb2 {[%clk 0:00:10]} 33. h3 {[%clk 0:00:08]}  Qb4 {[%clk 0:00:10]} 34. Rf1 {[%clk 0:00:07]}  f3 {[%clk 0:00:09]} 35. Rxf3 {[%clk 0:00:06]}  Qxh4 {[%clk 0:00:09]} 36. Rxf8+ {[%clk 0:00:06]}  Bxf8 {[%clk 0:00:10]} 37. Qc3+ {[%clk 0:00:04]}  Kg8 {[%clk 0:00:10]} 38. Qb3+ {[%clk 0:00:03]}  Kg7 {[%clk 0:00:09]} 0-1


[Site "https://www.chess.com"]

[Event "Titled Tuesday Blitz March 15 Early 2022"]
[White "Istvanovszki, Martin"]
[Black "San, Thit Lwin"]
[WhiteFideId "726958"]
[BlackFideId "13001272"]
[WhiteElo "2345"]
[BlackElo "2232"]
[Result "1-0"]
[Round "04"]
[TimeControl "180+1"]
[Date "2022.03.15"]
[WhiteClock "0:00:22"]
[BlackClock "0:00:02"]

1. e4 {[%clk 0:02:56]}  Nf6 {[%clk 0:03:00]} 2. Nc3 {[%clk 0:02:55]}  d5 {[%clk 0:03:00]} 3. e5 {[%clk 0:02:54]}  Nfd7 {[%clk 0:03:01]} 4. f4 {[%clk 0:02:53]}  e6 {[%clk 0:03:02]} 5. g3 {[%clk 0:02:53]}  c5 {[%clk 0:03:03]} 6. Bg2 {[%clk 0:02:53]}  Nc6 {[%clk 0:03:03]} 7. Nf3 {[%clk 0:02:53]}  Be7 {[%clk 0:03:04]} 8. O-O {[%clk 0:02:54]}  O-O {[%clk 0:03:02]} 9. d3 {[%clk 0:02:54]}  f5 {[%clk 0:03:01]} 10. Qe2 {[%clk 0:02:47]}  a6 {[%clk 0:02:53]} 11. Nd1 {[%clk 0:02:47]}  b5 {[%clk 0:02:51]} 12. c4 {[%clk 0:02:44]}  bxc4 {[%clk 0:02:36]} 13. dxc4 {[%clk 0:02:30]}  d4 {[%clk 0:02:25]} 14. Nf2 {[%clk 0:02:24]}  Rb8 {[%clk 0:02:19]} 15. b3 {[%clk 0:02:23]}  Bb7 {[%clk 0:02:15]} 16. Nd3 {[%clk 0:02:21]}  a5 {[%clk 0:02:13]} 17. Ba3 {[%clk 0:02:20]}  Qb6 {[%clk 0:02:12]} 18. Rab1 {[%clk 0:02:17]}  Nb4 {[%clk 0:02:11]} 19. Nfe1 {[%clk 0:02:13]}  Rbd8 {[%clk 0:02:00]} 20. Bxb7 {[%clk 0:02:09]}  Qxb7 {[%clk 0:02:00]} 21. Qg2 {[%clk 0:02:09]}  Qe4 {[%clk 0:01:57]} 22. Bxb4 {[%clk 0:02:06]}  axb4 {[%clk 0:01:57]} 23. Rb2 {[%clk 0:02:07]}  Ra8 {[%clk 0:01:49]} 24. Re2 {[%clk 0:02:07]}  Qxg2+ {[%clk 0:01:49]} 25. Kxg2 {[%clk 0:02:07]}  Ra5 {[%clk 0:01:48]} 26. Kf3 {[%clk 0:02:07]}  Rfa8 {[%clk 0:01:48]} 27. Rff2 {[%clk 0:02:07]}  Kf7 {[%clk 0:01:41]} 28. h3 {[%clk 0:02:07]}  h6 {[%clk 0:01:39]} 29. g4 {[%clk 0:02:07]}  g6 {[%clk 0:01:37]} 30. Ng2 {[%clk 0:02:07]}  Nb8 {[%clk 0:01:32]} 31. Rc2 {[%clk 0:02:01]}  Nc6 {[%clk 0:01:31]} 32. Kg3 {[%clk 0:01:56]}  Rg8 {[%clk 0:01:24]} 33. Kf3 {[%clk 0:01:51]}  Bd8 {[%clk 0:00:54]} 34. Nge1 {[%clk 0:01:41]}  Be7 {[%clk 0:00:53]} 35. Rg2 {[%clk 0:01:33]}  Raa8 {[%clk 0:00:51]} 36. Ke2 {[%clk 0:01:32]}  Ra5 {[%clk 0:00:47]} 37. Nf3 {[%clk 0:01:32]}  Nd8 {[%clk 0:00:42]} 38. Kd1 {[%clk 0:01:32]}  Nc6 {[%clk 0:00:39]} 39. Kc1 {[%clk 0:01:31]}  Raa8 {[%clk 0:00:38]} 40. Rg1 {[%clk 0:01:31]}  Rh8 {[%clk 0:00:35]} 41. Rcg2 {[%clk 0:01:31]}  Rag8 {[%clk 0:00:34]} 42. Kb1 {[%clk 0:01:30]}  Nd8 {[%clk 0:00:31]} 43. h4 {[%clk 0:01:25]}  Nc6 {[%clk 0:00:29]} 44. Nc1 {[%clk 0:01:00]}  Nd8 {[%clk 0:00:27]} 45. Ne2 {[%clk 0:01:00]}  Nc6 {[%clk 0:00:27]} 46. Kc2 {[%clk 0:00:49]}  Nd8 {[%clk 0:00:26]} 47. Kd3 {[%clk 0:00:49]}  Nc6 {[%clk 0:00:26]} 48. h5 {[%clk 0:00:48]}  gxh5 {[%clk 0:00:24]} 49. gxh5 {[%clk 0:00:48]}  Rxg2 {[%clk 0:00:23]} 50. Rxg2 {[%clk 0:00:49]}  Rg8 {[%clk 0:00:24]} 51. Rxg8 {[%clk 0:00:48]}  Kxg8 {[%clk 0:00:24]} 52. Ng3 {[%clk 0:00:47]}  Kf7 {[%clk 0:00:23]} 53. Ne1 {[%clk 0:00:46]}  Ke8 {[%clk 0:00:23]} 54. Nc2 {[%clk 0:00:46]}  Kd7 {[%clk 0:00:23]} 55. a4 {[%clk 0:00:46]}  Na5 {[%clk 0:00:20]} 56. Na1 {[%clk 0:00:46]}  Kc6 {[%clk 0:00:20]} 57. Kc2 {[%clk 0:00:45]}  Nb7 {[%clk 0:00:20]} 58. Kb2 {[%clk 0:00:45]}  Bh4 {[%clk 0:00:19]} 59. Nf1 {[%clk 0:00:44]}  Be1 {[%clk 0:00:19]} 60. Nc2 {[%clk 0:00:43]}  Bc3+ {[%clk 0:00:18]} 61. Ka2 {[%clk 0:00:41]}  Na5 {[%clk 0:00:19]} 62. Ng3 {[%clk 0:00:39]}  Kd7 {[%clk 0:00:17]} 63. Nf1 {[%clk 0:00:39]}  Ke7 {[%clk 0:00:17]} 64. Nh2 {[%clk 0:00:37]}  d3 {[%clk 0:00:17]} 65. Ne3 {[%clk 0:00:37]}  Bd4 {[%clk 0:00:16]} 66. Nhf1 {[%clk 0:00:36]}  Bc3 {[%clk 0:00:16]} 67. Nd1 {[%clk 0:00:36]}  Nc6 {[%clk 0:00:15]} 68. Nfe3 {[%clk 0:00:31]}  Kd7 {[%clk 0:00:15]} 69. Kb1 {[%clk 0:00:31]}  Kc7 {[%clk 0:00:15]} 70. Nb2 {[%clk 0:00:29]}  d2 {[%clk 0:00:14]} 71. Nbd1 {[%clk 0:00:29]}  Na5 {[%clk 0:00:14]} 72. Kc2 {[%clk 0:00:29]}  Bd4 {[%clk 0:00:13]} 73. Nf1 {[%clk 0:00:27]}  Bg1 {[%clk 0:00:11]} 74. Nxd2 {[%clk 0:00:27]}  Kd7 {[%clk 0:00:11]} 75. Kd3 {[%clk 0:00:27]}  Bd4 {[%clk 0:00:09]} 76. Ne3 {[%clk 0:00:27]}  Bc3 {[%clk 0:00:08]} 77. Nef1 {[%clk 0:00:25]}  Ke7 {[%clk 0:00:08]} 78. Ke3 {[%clk 0:00:26]}  Kf7 {[%clk 0:00:07]} 79. Kd3 {[%clk 0:00:26]}  Ke7 {[%clk 0:00:07]} 80. Kc2 {[%clk 0:00:26]}  Kd7 {[%clk 0:00:07]} 81. Nf3 {[%clk 0:00:26]}  Ke7 {[%clk 0:00:07]} 82. Ne3 {[%clk 0:00:25]}  Kf7 {[%clk 0:00:06]} 83. Nd1 {[%clk 0:00:26]}  Ba1 {[%clk 0:00:05]} 84. Nf2 {[%clk 0:00:24]}  Ke7 {[%clk 0:00:05]} 85. Nd3 {[%clk 0:00:24]}  Nb7 {[%clk 0:00:02]} 86. Nh4 {[%clk 0:00:22]}  Kd7 {[%clk 0:00:02]} 87. Ng6 {[%clk 0:00:22]} 1-0


[Site "https://www.chess.com"]

[Event "Titled Tuesday Blitz March 15 Early 2022"]
[White "Jumabayev, Rinat"]
[Black "Jaferian, Koosha"]
[WhiteFideId "13702661"]
[BlackFideId "12507440"]
[WhiteElo "2561"]
[BlackElo "2030"]
[Result "1-0"]
[Round "04"]
[TimeControl "180+1"]
[Date "2022.03.15"]
[WhiteClock "0:00:31"]
[BlackClock "0:00:03"]

1. d4 {[%clk 0:03:00]}  Nf6 {[%clk 0:02:59]} 2. c4 {[%clk 0:03:01]}  e6 {[%clk 0:03:00]} 3. Nf3 {[%clk 0:03:01]}  b6 {[%clk 0:03:00]} 4. g3 {[%clk 0:03:01]}  Ba6 {[%clk 0:03:00]} 5. b3 {[%clk 0:03:01]}  Bb4+ {[%clk 0:03:00]} 6. Bd2 {[%clk 0:03:01]}  Be7 {[%clk 0:03:01]} 7. Bg2 {[%clk 0:03:02]}  c6 {[%clk 0:03:00]} 8. O-O {[%clk 0:02:48]}  O-O {[%clk 0:03:00]} 9. Qc2 {[%clk 0:02:42]}  d5 {[%clk 0:02:59]} 10. Rd1 {[%clk 0:02:43]}  Nbd7 {[%clk 0:02:59]} 11. Bf4 {[%clk 0:02:43]}  Rc8 {[%clk 0:02:52]} 12. Nc3 {[%clk 0:02:41]}  Nh5 {[%clk 0:02:52]} 13. Bc1 {[%clk 0:02:40]}  f5 {[%clk 0:02:52]} 14. e3 {[%clk 0:02:33]}  Bd6 {[%clk 0:02:50]} 15. Ne2 {[%clk 0:02:31]}  Nhf6 {[%clk 0:02:13]} 16. a4 {[%clk 0:02:30]}  Ne4 {[%clk 0:02:12]} 17. Ba3 {[%clk 0:02:24]}  Bxa3 {[%clk 0:02:11]} 18. Rxa3 {[%clk 0:02:23]}  Qe7 {[%clk 0:02:07]} 19. Raa1 {[%clk 0:02:20]}  Rfd8 {[%clk 0:01:58]} 20. a5 {[%clk 0:02:18]}  b5 {[%clk 0:01:53]} 21. c5 {[%clk 0:02:13]}  Rb8 {[%clk 0:01:43]} 22. b4 {[%clk 0:01:59]}  Bc8 {[%clk 0:01:39]} 23. a6 {[%clk 0:01:58]}  Ndf6 {[%clk 0:01:22]} 24. Ne5 {[%clk 0:01:55]}  Bd7 {[%clk 0:01:22]} 25. Nf4 {[%clk 0:01:51]}  Ng5 {[%clk 0:01:15]} 26. Re1 {[%clk 0:01:48]}  Nf7 {[%clk 0:01:15]} 27. Nfd3 {[%clk 0:01:48]}  Nxe5 {[%clk 0:01:14]} 28. Nxe5 {[%clk 0:01:48]}  Be8 {[%clk 0:01:13]} 29. f3 {[%clk 0:01:44]}  Qc7 {[%clk 0:01:07]} 30. Qb3 {[%clk 0:01:39]}  Nd7 {[%clk 0:01:05]} 31. Nd3 {[%clk 0:01:39]}  Bf7 {[%clk 0:00:59]} 32. Qc3 {[%clk 0:01:39]}  Re8 {[%clk 0:00:57]} 33. e4 {[%clk 0:01:35]}  dxe4 {[%clk 0:00:46]} 34. fxe4 {[%clk 0:01:34]}  fxe4 {[%clk 0:00:47]} 35. Bxe4 {[%clk 0:01:33]}  Nf6 {[%clk 0:00:48]} 36. Ne5 {[%clk 0:01:28]}  Nd5 {[%clk 0:00:37]} 37. Qd2 {[%clk 0:01:21]}  Rbd8 {[%clk 0:00:33]} 38. Rad1 {[%clk 0:01:06]}  Rf8 {[%clk 0:00:20]} 39. Rf1 {[%clk 0:01:00]}  Rc8 {[%clk 0:00:12]} 40. Rde1 {[%clk 0:00:51]}  Qe7 {[%clk 0:00:08]} 41. Bxd5 {[%clk 0:00:45]}  cxd5 {[%clk 0:00:09]} 42. Qd3 {[%clk 0:00:41]}  Qe8 {[%clk 0:00:08]} 43. Rf4 {[%clk 0:00:37]}  Bg6 {[%clk 0:00:06]} 44. Rxf8+ {[%clk 0:00:36]}  Qxf8 {[%clk 0:00:05]} 45. Nxg6 {[%clk 0:00:32]}  hxg6 {[%clk 0:00:05]} 46. Qxg6 {[%clk 0:00:32]}  Rc6 {[%clk 0:00:03]} 47. Rxe6 {[%clk 0:00:32]}  Rc7 {[%clk 0:00:03]} 48. Re8 {[%clk 0:00:31]} 1-0


[Site "https://www.chess.com"]